bitfinex/quotes_ETHUSD_20240910
["timestamp","ask_amount","ask_price","bid_price","bid_amount"]
[1725983665113,0.89001274,2332.3,2331.6,0.0106941]
[1725983665302,0.89001274,2332.3,2331.6,0.09644997]
[1725983665499,2.2622,2332.2,2331.6,0.09645738]
[1725983666529,0.89001274,2332.4,2331.6,0.09645738]
[1725983666732,3.07300715,2332.4,2331.6,0.0106941]
[1725983666947,2.76149291,2332.3,2331.6,0.0106941]
[1725983667250,0.89001274,2332.1,2331.6,0.0106941]
[1725983667461,2.2876,2331.9,2331.6,0.0106941]
[1725983669707,0.74723794,2331.8,2331.6,0.0106941]
[1725983669936,3.17761274,2331.9,2331.6,0.0106941]
[1725983670133,0.74707978,2331.8,2331.6,0.0106941]
[1725983670348,3.17761274,2331.9,2331.6,0.0106941]
[1725983670509,1.19764803,2331.8,2331.6,0.0106941]
[1725983670715,0.45126319,2331.8,2331.6,0.0106941]
[1725983672354,2.2876,2331.9,2331.6,0.0106941]
[1725983673019,3.24851274,2332.3,2331.6,0.0106941]
[1725983673551,2.3585,2332.3,2331.6,0.0106941]
[1725983674759,0.89001274,2332.5,2331.7,4.4604]
[1725983674929,0.89001274,2332.5,2331.8,0.53286018]
[1725983675117,0.89001274,2332.6,2331.8,0.53286018]
[1725983675449,0.89001274,2332.5,2331.8,0.44710941]
[1725983675655,2.80677558,2332.5,2331.8,0.44710941]
[1725983675859,0.76660588,2332.4,2331.8,0.44710941]
[1725983676151,2.4434,2332.3,2331.6,0.0116604]
[1725983678327,3.33341274,2332.3,2331.6,0.0116604]
[1725983678540,0.97591063,2332.2,2331.6,0.0116604]
[1725983678718,3.33341274,2332.3,2331.6,0.0116604]
[1725983679219,0.76566822,2332.2,2331.6,0.0116604]
[1725983679422,3.33341274,2332.3,2331.6,0.0116604]
[1725983680351,0.76556667,2332.2,2331.6,0.0116604]
[1725983680539,0.40989794,2332.1,2331.6,0.0116604]
[1725983681153,2.4833,2332.0,2331.6,0.0116604]
[1725983681509,3.37331274,2332.0,2331.6,0.0116604]
[1725983682608,5.09067445,2331.8,2331.6,0.0116604]
[1725983682810,0.58559986,2331.7,2331.6,0.0116604]
[1725983683948,2.4833,2331.9,2331.6,0.0116604]
[1725983684562,5.09067445,2331.8,2331.6,0.0116604]
[1725983684723,3.79819931,2331.7,2331.6,0.0116604]
[1725983684924,2.4833,2331.6,2331.1,0.0235218]
[1725983685139,0.88630253,2331.8,2331.1,0.0235218]
[1725983685343,3.36960253,2331.9,2331.1,0.10930876]
[1725983685515,0.5149628,2331.8,2331.1,0.10930876]
[1725983686174,2.4833,2331.9,2331.1,0.10930876]
[1725983686333,6.38687492,2332.1,2331.1,0.10930876]
[1725983686655,0.76448372,2332.0,2331.1,0.10930876]
[1725983686949,6.38687492,2332.1,2331.1,0.10930876]
[1725983687883,0.40989794,2332.1,2331.1,0.10930876]
[1725983688175,0.40989794,2332.1,2331.1,0.34941964]
[1725983688689,0.88630253,2332.3,2331.3,2.4996]
[1725983688889,0.88630253,2332.5,2331.5,2.4996]
[1725983689178,0.88630253,2332.6,2331.7,2.4996]
[1725983689350,3.37964688,2332.6,2331.8,0.08576173]
[1725983689555,0.88630253,2332.7,2331.8,0.08576173]
[1725983689751,1.65093019,2332.7,2331.8,0.08576173]
[1725983689955,2.4429,2332.3,2331.4,2.4996]
[1725983690183,5.09067445,2332.1,2331.1,2.5231218]
[1725983690389,0.50906745,2332.0,2331.2,0.08577763]
[1725983691191,0.88630253,2332.2,2331.1,2.5231218]
[1725983691394,5.09067445,2332.1,2331.1,2.60890284]
[1725983691551,0.5976977,2332.0,2331.1,2.60890284]
[1725983692475,3.32920253,2332.3,2331.1,2.60890284]
[1725983692650,0.7644571,2332.2,2331.1,2.60890284]
[1725983693087,2.4429,2332.3,2331.2,2.0]
[1725983693289,0.46642216,2332.2,2331.3,0.54665826]
[1725983693883,0.46642216,2332.2,2331.4,2.3303]
[1725983694086,0.46642216,2332.2,2331.5,0.08576797]
[1725983694287,0.29093222,2332.1,2331.5,0.08576797]
[1725983694589,0.29093222,2332.1,2331.4,2.3303]
[1725983694948,0.29093222,2332.1,2331.1,2.3538218]
[1725983695178,0.29093222,2332.1,2331.2,0.08577755]
[1725983696162,2.3007,2332.0,2331.2,0.08577755]
[1725983696588,2.3007,2332.0,2331.1,2.3538218]
[1725983696888,3.18700253,2332.0,2331.1,2.3538218]
[1725983697059,2.3007,2332.0,2331.1,2.3538218]
[1725983697261,0.85686092,2331.9,2331.1,2.3538218]
[1725983698393,2.3007,2332.0,2331.1,2.3538218]
[1725983698695,1.17723475,2332.1,2331.2,0.08578444]
[1725983698999,0.29093222,2332.1,2331.2,0.08578444]
[1725983699151,1.17723475,2332.1,2331.2,0.08578444]
[1725983699492,0.25299594,2332.0,2331.2,0.08578255]
[1725983699676,0.29093222,2332.1,2331.2,0.08578255]
[1725983699677,6.2679092,2332.1,2331.2,0.08578255]
[1725983700194,5.23668487,2332.0,2331.1,2.3538218]
[1725983700361,0.76415494,2331.9,2331.1,2.43960182]
[1725983700563,1.35272469,2332.2,2331.3,2.2652]
[1725983700875,1.35272469,2332.2,2331.4,0.08577553]
[1725983701065,0.51277438,2332.1,2331.4,0.08577553]
[1725983701580,0.51277438,2332.1,2331.1,0.0235218]
[1725983701581,2.2777,2331.9,2331.1,0.0235218]
[1725983701788,2.796018,2331.8,2331.1,0.0235218]
[1725983702089,0.5073718,2331.7,2331.1,0.10931609]
[1725983702256,0.88630253,2332.0,2331.1,0.10931609]
[1725983702449,1.39907691,2332.1,2331.1,0.3609377]
[1725983702650,0.76422764,2332.0,2331.1,0.3609377]
[1725983702993,1.39907691,2332.1,2331.1,0.3609377]
[1725983703158,1.08456933,2332.0,2331.1,0.3609377]
[1725983703352,1.20635435,2332.0,2331.1,0.3609377]
[1725983703549,3.22373717,2331.9,2331.1,0.0235218]
[1725983703787,0.76461051,2331.8,2331.1,0.10931387]
[1725983703976,3.34540253,2331.9,2331.1,0.10931387]
[1725983704181,1.20635435,2332.0,2331.2,2.3861]
[1725983704451,0.76495539,2331.9,2331.3,0.08577734]
[1725983704653,1.20635435,2332.0,2331.3,0.08577734]
[1725983704897,0.88630253,2332.0,2331.3,0.33531725]
[1725983705189,0.88630253,2332.1,2331.3,0.33531725]
[1725983705488,0.88630253,2332.2,2331.4,2.3294]
[1725983705697,0.88630253,2332.2,2331.5,0.35223584]
[1725983705850,1.33501911,2332.3,2331.5,0.35223584]
[1725983705851,0.88630253,2332.4,2331.6,2.4097]
[1725983706052,0.88630253,2332.6,2331.8,2.2855]
[1725983706252,0.88630253,2332.5,2331.9,0.32287463]
[1725983706494,2.03458091,2332.5,2331.9,0.32287463]
[1725983706650,0.76551892,2332.4,2331.9,0.32287463]
[1725983706857,0.88630253,2332.5,2331.9,0.32287463]
[1725983707051,2.04018036,2332.5,2331.9,0.32287463]
[1725983707390,2.04018036,2332.5,2331.9,0.0857494]
[1725983707391,0.76965897,2332.4,2331.9,0.0857494]
[1725983707592,0.88630253,2332.3,2331.8,2.2855]
[1725983707760,0.88630253,2332.3,2331.2,2.0]
[1725983707761,0.88630253,2332.2,2331.5,2.4751]
[1725983707961,0.88630253,2332.1,2331.5,2.4751]
[1725983708289,0.88630253,2332.0,2331.5,2.4751]
[1725983708694,3.25905078,2332.1,2331.6,0.08577019]
[1725983708695,0.88630253,2332.1,2331.6,0.08577019]
[1725983709004,0.88630253,2332.2,2331.7,4.342]
[1725983709167,0.88630253,2332.3,2331.8,0.08575247]
[1725983709368,0.88630253,2332.2,2331.8,0.08575247]
[1725983709563,1.33501911,2332.3,2331.8,0.08575247]
[1725983709564,0.88630253,2332.3,2331.8,0.08575247]
[1725983709768,0.88630253,2332.2,2331.7,2.342]
[1725983709960,2.22132164,2332.1,2331.3,5.0]
[1725983710205,2.22132164,2332.1,2331.4,2.3985]
[1725983710206,0.88630253,2331.9,2331.4,2.3985]
[1725983710348,0.88630253,2331.9,2331.1,0.0235218]
[1725983710349,0.88630253,2331.7,2331.1,2.4220218]
[1725983710554,0.88630253,2331.6,2331.2,0.08578312]
[1725983710868,0.88630253,2331.6,2331.1,2.4220218]
[1725983711067,0.88630253,2331.6,2331.2,0.0857831]
[1725983711372,0.88630253,2331.6,2331.1,2.4220218]
[1725983711555,0.88630253,2331.6,2331.2,0.0857831]
[1725983712296,0.88630253,2331.5,2331.2,0.0857831]
[1725983712784,0.88630253,2331.5,2331.1,2.4220218]
[1725983712979,0.88630253,2331.5,2331.2,0.08578755]
[1725983713296,0.88630253,2331.6,2331.2,0.08578755]
[1725983713492,0.88630253,2331.5,2331.2,0.08578755]
[1725983713835,0.88630253,2331.5,2331.2,0.33656848]
[1725983713990,0.88630253,2331.6,2331.3,0.08577722]
[1725983714460,0.7754942,2331.5,2331.3,0.08577722]
[1725983714660,0.88630253,2331.6,2331.3,0.08577722]
[1725983715372,2.04945081,2331.6,2331.3,0.08577722]
[1725983715572,0.88630253,2331.6,2331.3,0.08577722]
[1725983715787,0.88630253,2331.7,2331.3,0.08577722]
[1725983715999,0.88630253,2331.6,2331.3,0.08577722]
[1725983716409,1.66193124,2331.6,2331.2,0.08577584]
[1725983716570,0.88630253,2331.5,2331.2,0.08577584]
[1725983716898,0.88630253,2331.5,2331.2,0.33656224]
[1725983717287,2.0497456,2331.5,2331.1,2.4220218]
[1725983717625,2.82537431,2331.4,2331.1,0.0235218]
[1725983717836,0.77562871,2331.3,2331.1,0.0235218]
[1725983718122,0.88630253,2331.2,2331.1,0.0235218]
[1725983718269,2.82534243,2331.2,2331.1,0.0235218]
[1725983718474,0.77561596,2331.2,2331.1,0.0235218]
[1725983718896,0.88630253,2331.2,2331.1,0.0235218]
[1725983719214,2.11063507,2331.2,2331.1,0.0235218]
[1725983719413,3.99045037,2331.2,2331.1,0.0235218]
[1725983719618,4.20603819,2331.2,2331.1,0.0235218]
[1725983720124,3.27073268,2331.2,2331.1,0.0235218]
[1725983720317,2.82678806,2331.2,2331.1,0.0235218]
[1725983720522,2.05103544,2331.2,2331.1,0.0235218]
[1725983720692,2.10738201,2331.2,2331.1,0.0235218]
[1725983720887,5.71703268,2331.2,2331.1,0.0235218]
[1725983721228,9.24395065,2331.2,2331.1,0.0235218]
[1725983721515,6.35229035,2331.2,2331.1,0.0235218]
[1725983721814,3.48884668,2331.2,2331.1,0.0235218]
[1725983722016,3.27030083,2331.2,2331.1,0.0235218]
[1725983722218,2.82658531,2331.2,2331.1,0.0235218]
[1725983722621,2.82524206,2331.2,2331.1,0.0235218]
[1725983723088,2.82524911,2331.2,2331.1,0.0235218]
[1725983723300,2.05019694,2331.2,2331.1,0.0235218]
[1725983723587,2.45333145,2331.2,2331.1,0.0235218]
[1725983723816,3.78466565,2331.2,2331.1,0.0235218]
[1725983723984,2.82542656,2331.2,2331.1,0.0235218]
[1725983724183,1.93763043,2331.2,2331.1,0.0235218]
[1725983724421,2.82537821,2331.2,2331.1,0.0235218]
[1725983724584,2.82536851,2331.2,2331.1,0.0235218]
[1725983725184,0.77505217,2331.2,2331.1,0.0235218]
[1725983725408,1.88024195,2331.2,2331.1,0.0235218]
[1725983725624,2.65529412,2331.2,2331.1,0.0235218]
[1725983725827,3.81786268,2331.2,2331.1,0.0235218]
[1725983725984,3.81728617,2331.2,2331.1,0.0235218]
[1725983726731,3.26842828,2331.2,2331.1,0.0235218]
[1725983727022,1.33080755,2331.2,2331.1,0.0235218]
[1725983727224,3.26842828,2331.2,2331.1,0.0235218]
[1725983727823,2.4929561,2331.2,2331.1,0.0235218]
[1725983728295,1.93691425,2331.2,2331.1,0.0235218]
[1725983728623,3.65239265,2331.2,2331.1,0.0235218]
[1725983728800,6.3642042,2331.2,2331.1,0.0235218]
[1725983729383,8.6773042,2331.2,2331.1,0.0235218]
[1725983729624,6.90182514,2331.2,2330.7,0.0235218]
[1725983729787,0.88703933,2330.8,2330.7,0.0235218]
[1725983729981,1.330559,2330.8,2330.7,0.0235218]
[1725983730290,2.04897016,2330.8,2330.7,0.0235218]
[1725983730793,0.88682161,2330.8,2330.7,0.0235218]
[1725983731009,3.26747325,2330.8,2330.7,0.0235218]
[1725983731234,2.99686274,2330.8,2330.7,0.0235218]
[1725983731397,2.44106944,2330.8,2330.7,0.0235218]
[1725983731596,1.39020475,2330.8,2330.7,0.0235218]
[1725983731801,1.3900814,2330.8,2330.7,0.0235218]
[1725983732000,0.50415519,2330.8,2330.7,0.0235218]
[1725983732197,6.58411927,2330.8,2330.7,0.0235218]
[1725983732396,7.91136467,2330.8,2330.7,0.0235218]
[1725983732632,2.81930903,2330.8,2330.7,0.0235218]
[1725983732838,0.77344026,2330.8,2330.7,0.0235218]
[1725983733053,0.88570838,2330.8,2330.7,0.0235218]
[1725983733228,6.18884325,2330.8,2330.7,0.0235218]
[1725983733399,6.96228351,2330.8,2330.7,0.0235218]
[1725983733602,7.96897563,2330.8,2330.7,0.0235218]
[1725983734336,6.80889059,2330.8,2330.7,0.0235218]
[1725983734536,5.92318221,2330.8,2330.7,0.0235218]
[1725983734736,5.14974195,2330.8,2330.7,0.0235218]
[1725983735229,5.92262582,2330.8,2330.7,0.0235218]
[1725983735619,5.92267791,2330.8,2330.7,0.0235218]
[1725983736144,1.00669212,2330.8,2330.7,0.0235218]
[1725983736313,0.88570838,2331.1,2330.7,0.0235218]
[1725983736519,0.88570838,2331.1,2330.7,2.3463218]
[1725983736737,0.88570838,2331.2,2330.8,0.32143655]
[1725983737044,0.88570838,2331.3,2330.8,0.32143655]
[1725983737250,0.88570838,2331.4,2330.8,0.32143655]
[1725983737449,1.330559,2331.5,2330.9,2.3228]
[1725983737450,0.88570838,2331.5,2330.9,2.3228]
[1725983737746,4.14304983,2331.4,2331.0,0.26442365]
[1725983737903,4.14304983,2331.4,2330.9,2.3228]
[1725983738102,4.14304983,2331.2,2330.9,2.3228]
[1725983738852,4.14304983,2331.2,2330.7,0.10931494]
[1725983739367,5.02875821,2331.4,2330.7,0.10931494]
[1725983739645,0.77331554,2331.3,2330.7,0.66670643]
[1725983739957,5.02875821,2331.4,2330.7,0.66670643]
[1725983740167,2.81942601,2331.3,2330.7,0.66670643]
[1725983740463,0.88570838,2331.3,2330.8,0.31313064]
[1725983740671,4.14304983,2331.2,2330.7,0.0235218]
[1725983740818,4.14304983,2331.0,2330.7,0.0235218]
[1725983741024,4.55735481,2331.0,2330.7,0.0235218]
[1725983741719,5.44306319,2331.0,2330.7,0.0235218]
[1725983741920,4.55735481,2331.0,2330.7,0.0235218]
[1725983743264,5.44306319,2331.0,2330.7,0.0235218]
[1725983745370,0.88570838,2331.1,2330.8,2.4035]
[1725983745596,0.88570838,2331.4,2330.9,0.08579137]
[1725983745756,0.88570838,2331.4,2330.9,0.33707269]
[1725983746083,2.81950317,2331.4,2330.9,0.33707269]
[1725983746231,5.02875821,2331.5,2330.9,0.33707269]
[1725983746431,0.77353274,2331.4,2330.9,0.33707269]
[1725983746681,0.77353274,2331.4,2331.0,2.4172]
[1725983746836,0.88570838,2331.5,2331.1,0.08578705]
[1725983747037,0.88570838,2331.6,2331.1,0.08578705]
[1725983747263,0.88570838,2331.7,2331.1,0.33608575]
[1725983747683,4.14304983,2331.5,2331.1,0.2502987]
[1725983747891,4.14304983,2331.5,2331.0,2.4172]
[1725983748241,5.02875821,2331.5,2331.0,2.4172]
[1725983748443,0.88570838,2331.6,2331.0,2.4172]
[1725983748684,4.14304983,2331.5,2331.0,2.4172]
[1725983748915,5.02875821,2331.5,2331.0,2.4172]
[1725983749088,4.14304983,2331.3,2330.7,2.4417218]
[1725983749457,5.02875821,2331.3,2330.7,2.4417218]
[1725983749659,0.88570838,2331.3,2330.7,2.4417218]
[1725983750168,5.02875821,2331.3,2330.7,2.4417218]
[1725983750374,0.7731367,2331.2,2330.7,2.4417218]
[1725983750556,4.14304983,2331.1,2330.7,0.0235218]
[1725983750779,5.02875821,2331.1,2330.7,0.0235218]
[1725983751191,4.14304983,2330.9,2330.7,0.0235218]
[1725983751556,5.02875821,2330.9,2330.7,0.0235218]
[1725983751804,3.45442582,2330.8,2330.7,0.0235218]
[1725983752171,8.35308688,2330.8,2330.7,0.0235218]
[1725983752518,5.88888688,2330.8,2330.7,0.0235218]
[1725983752724,2.81851282,2330.8,2330.7,0.0235218]
[1725983753054,0.8857271,2330.8,2330.7,0.0235218]
[1725983753303,5.02877693,2330.9,2330.7,0.0235218]
[1725983753600,2.81977592,2330.8,2330.7,0.0235218]
[1725983753914,4.18020398,2330.8,2330.7,0.0235218]
[1725983755161,2.85174955,2330.8,2330.7,0.0235218]
[1725983755358,4.18020398,2330.8,2330.7,0.0235218]
[1725983755553,3.26373149,2330.8,2330.7,0.0235218]
[1725983756000,1.93527706,2330.8,2330.7,0.0235218]
[1725983756197,3.26373149,2330.8,2330.7,0.0235218]
[1725983757180,1.93527706,2330.8,2330.7,0.0235218]
[1725983757361,3.26373149,2330.8,2330.7,0.0235218]
[1725983757570,2.82174166,2330.8,2330.7,0.0235218]
[1725983757770,3.82847412,2330.8,2330.7,0.0235218]
[1725983758292,2.94200952,2330.8,2330.7,0.0235218]
[1725983758495,4.27046395,2330.8,2330.7,0.0235218]
[1725983759302,4.27135802,2330.8,2330.7,0.0235218]
[1725983759511,3.26469952,2330.8,2330.7,0.0235218]
[1725983759716,2.82160267,2330.8,2330.7,0.0235218]
[1725983760009,0.88632561,2330.9,2330.7,2.4679218]
[1725983761079,0.88632561,2330.8,2330.7,2.4679218]
[1725983761299,0.7738513,2330.8,2330.7,2.71571398]
[1725983761761,0.88632561,2330.9,2330.7,2.71571398]
[1725983761986,0.88632561,2330.9,2330.7,2.4679218]
[1725983762191,0.88632561,2330.8,2330.7,2.4679218]
[1725983762399,1.32942246,2330.8,2330.7,0.0235218]
[1725983762606,3.2665157,2330.8,2330.7,0.0235218]
[1725983762842,0.88776372,2331.0,2330.7,2.4373218]
[1725983763025,0.88776372,2331.1,2330.8,0.33911122]
[1725983763323,0.88776372,2331.1,2330.7,2.4373218]
[1725983763324,0.88776372,2330.9,2330.7,2.4373218]
[1725983763611,0.88776372,2331.0,2330.7,2.4373218]
[1725983763811,0.88776372,2331.1,2330.7,2.4373218]
[1725983764058,2.04989745,2331.0,2330.8,0.24473218]
[1725983764252,2.10428063,2331.2,2330.8,0.24473218]
[1725983764253,0.88776372,2331.1,2330.8,0.24473218]
[1725983764406,0.88776372,2331.0,2330.8,0.24473218]
[1725983764611,0.88776372,2331.1,2330.8,0.24473218]
[1725983764811,0.88776372,2331.2,2330.9,2.3465]
[1725983765037,0.77501345,2331.2,2331.0,0.25912322]
[1725983765368,0.88776372,2331.3,2331.1,2.43228643]
[1725983765509,2.21901093,2331.6,2331.1,2.43228643]
[1725983765510,0.88776372,2331.6,2331.1,2.43228643]
[1725983765708,0.88776372,2331.7,2331.3,2.3465]
[1725983766051,0.88776372,2331.6,2331.4,0.0857733]
[1725983766206,0.88776372,2331.6,2331.4,0.41475399]
[1725983766407,2.8254869,2331.6,2331.4,0.41475399]
[1725983766651,0.88776372,2331.7,2331.4,0.41475399]
[1725983767322,0.88776372,2331.6,2331.4,0.0857733]
[1725983767502,0.88776372,2331.7,2331.4,0.0857733]
[1725983767704,0.88776372,2331.7,2331.5,2.4399]
[1725983767908,2.54880834,2331.9,2331.6,0.33833265]
[1725983767909,0.88776372,2331.9,2331.6,0.33833265]
[1725983768150,1.32942246,2332.0,2331.6,0.33833265]
[1725983768151,0.88776372,2332.0,2331.7,2.4399]
[1725983768318,1.32942246,2332.1,2331.8,0.08575671]
[1725983768319,0.88776372,2332.1,2331.8,0.08575671]
[1725983768671,1.77407867,2332.3,2332.0,2.4399]
[1725983768672,0.88776372,2332.3,2332.0,2.4399]
[1725983768811,0.0235218,2332.5,2332.2,4.4747]
[1725983769145,0.0235218,2332.5,2332.4,6.61774983]
[1725983769349,0.0235218,2332.5,2332.4,9.61774983]
[1725983769949,0.0235218,2332.5,2332.4,5.4747]
[1725983770151,0.0235218,2332.5,2332.4,5.56042398]
[1725983770372,0.0235218,2332.5,2332.4,6.27634681]
[1725983770521,0.0235218,2333.0,2332.8,2.0]
[1725983770722,0.0235218,2333.0,2332.9,2.49780765]
[1725983771132,0.0235218,2333.0,2332.9,5.49780765]
[1725983771463,0.0235218,2333.0,2332.9,3.57618575]
[1725983771634,0.0235218,2333.0,2332.8,0.08571072]
[1725983772469,0.0235218,2333.0,2332.9,2.4121]
[1725983773059,0.0235218,2333.0,2332.9,2.49781586]
[1725983773271,0.0235218,2333.0,2332.9,5.49781586]
[1725983775467,0.0235218,2333.9,2332.9,5.49781586]
[1725983775468,0.0205654,2333.9,2332.9,5.49781586]
[1725983775671,0.0205654,2333.9,2333.0,0.74978159]
[1725983775841,0.0205654,2333.9,2333.1,0.08570561]
[1725983777744,0.0205654,2333.9,2333.0,0.74978159]
[1725983777954,0.0205654,2333.9,2333.1,0.08570559]
[1725983778150,0.0205654,2333.9,2333.1,0.71046431]
[1725983779682,0.0205654,2333.9,2333.2,2.2814]
[1725983779863,0.0205654,2333.9,2333.3,0.0856964]
[1725983781340,0.0205654,2333.9,2333.3,0.08569641]
[1725983781541,0.0205654,2333.9,2332.9,2.3776]
[1725983781542,7.42967477,2333.9,2332.9,2.3776]
[1725983781772,0.74296748,2333.8,2332.4,2.3776]
[1725983782257,0.74296748,2333.8,2332.6,2.0]
[1725983782452,7.42967477,2333.9,2332.8,2.3056]
[1725983782453,2.3423654,2333.9,2332.8,2.3056]
[1725983782676,2.3423654,2333.9,2332.9,0.08571597]
[1725983782885,7.42967477,2333.9,2332.8,2.3056]
[1725983783041,0.97023654,2333.8,2332.9,0.23056]
[1725983783888,2.3423654,2333.9,2333.0,0.08571598]
[1725983784439,0.0205654,2333.9,2333.1,2.4355]
[1725983784738,0.0205654,2333.9,2333.2,0.2521216]
[1725983784939,0.0205654,2333.9,2333.1,2.4355]
[1725983784940,2.3722,2333.8,2332.9,0.23056]
[1725983785193,2.3722,2333.8,2332.9,3.23056]
[1725983785741,5.08730937,2333.6,2332.7,0.08571603]
[1725983786769,5.08730937,2333.6,2332.5,0.08572854]
[1725983786945,2.3722,2333.4,2332.5,0.32562854]
[1725983787266,2.3722,2333.4,2332.5,3.32562854]
[1725983787659,2.3722,2333.4,2332.5,3.32858494]
[1725983789565,2.3722,2333.4,2332.5,3.32748094]
[1725983789782,2.3722,2333.4,2332.6,0.57264809]
[1725983789954,2.3722,2333.4,2332.7,0.08572329]
[1725983792091,2.4917,2333.7,2332.7,0.08572329]
[1725983792699,2.4917,2333.7,2332.8,2.282]
[1725983792867,2.4917,2333.7,2332.9,0.622483]
[1725983793074,2.4917,2333.7,2332.9,5.622483]
[1725983793477,9.8742982,2334.0,2332.9,5.622483]
[1725983793659,2.5142982,2334.0,2333.0,2.282]
[1725983793873,2.5142982,2334.0,2333.1,0.87614835]
[1725983794317,2.5142982,2334.0,2333.1,3.87614835]
[1725983797823,0.0225982,2334.0,2333.1,3.87614835]
[1725983798133,0.0225982,2334.0,2333.2,2.3257]
[1725983798438,0.0225982,2334.0,2333.3,0.70588167]
[1725983798599,0.0225982,2334.0,2333.3,3.08569683]
[1725983798996,0.0225982,2334.0,2333.3,0.08569683]
[1725983800241,0.0225982,2334.0,2333.4,2.3068]
[1725983800396,0.0225982,2334.0,2333.5,0.08569364]
[1725983800604,0.0225982,2334.0,2333.5,0.33351269]
[1725983800911,0.0225982,2334.0,2333.5,3.33351269]
[1725983801907,0.0225982,2334.0,2333.6,2.0]
[1725983802106,0.0225982,2334.0,2333.7,0.08568114]
[1725983803405,0.0225982,2334.0,2333.8,2.2993]
[1725983803715,0.0225982,2334.0,2333.9,0.32417661]
[1725983805352,0.0225982,2334.0,2333.9,0.23849811]
[1725983807215,0.0225982,2334.0,2333.8,0.0856864]
[1725983807957,0.0225982,2334.0,2333.7,0.08568643]
[1725983808726,0.0225982,2334.0,2333.6,3.0]
[1725983808727,0.0225982,2334.0,2333.6,0.08569379]
[1725983808923,0.0225982,2334.0,2333.6,0.34897507]
[1725983812830,5.10298832,2334.0,2333.6,0.08569379]
[1725983813140,0.0225982,2334.0,2333.6,0.08569379]
[1725983813575,0.91036192,2334.0,2333.6,0.08569379]
[1725983814427,0.77690259,2333.9,2333.6,0.08569379]
[1725983814627,0.88776372,2333.9,2333.6,0.08569379]
[1725983814818,2.82999027,2333.9,2333.6,0.08569379]
[1725983815496,0.90127329,2334.0,2333.7,2.4838]
[1725983815675,0.90127329,2334.0,2333.8,0.34263653]
[1725983815832,0.0225982,2334.0,2333.8,0.34263653]
[1725983818178,0.0225982,2334.0,2333.8,3.34263653]
[1725983818832,0.0225982,2334.0,2333.8,0.25694938]
[1725983819032,0.0225982,2334.0,2333.5,0.08568762]
[1725983819357,4.92754065,2334.0,2333.2,2.3059]
[1725983819527,1.32942246,2333.9,2333.3,0.43059]
[1725983819730,3.27094434,2333.9,2333.3,0.43059]
[1725983819930,1.94152188,2333.8,2333.4,0.0856972]
[1725983820150,3.76252066,2334.0,2333.4,0.36791592]
[1725983820367,1.94186556,2333.9,2333.4,0.36791592]
[1725983820576,0.77674622,2333.8,2333.4,0.36791592]
[1725983820776,3.76252066,2334.0,2333.4,0.36791592]
[1725983821070,1.94171065,2333.9,2333.4,0.36791592]
[1725983821232,0.77668426,2333.8,2333.4,0.36791592]
[1725983821428,3.76252066,2334.0,2333.4,0.36791592]
[1725983821731,1.94179378,2333.9,2333.4,0.36791592]
[1725983821935,0.77666264,2333.8,2333.4,0.36791592]
[1725983822157,1.35202066,2334.0,2333.4,0.36791592]
[1725983822358,1.94174958,2333.9,2333.4,0.36791592]
[1725983822562,1.35202066,2334.0,2333.4,0.36791592]
[1725983822777,1.35202066,2334.0,2333.5,2.3403]
[1725983822778,0.0225982,2334.0,2333.5,2.3403]
[1725983822934,0.0225982,2334.0,2333.8,2.3403]
[1725983823132,0.0225982,2334.0,2333.9,0.08567882]
[1725983824636,0.0225982,2334.0,2333.9,2.43417882]
[1725983824876,0.0225982,2334.0,2333.9,5.43417882]
[1725983825053,0.0225982,2334.0,2333.9,6.89055094]
[1725983826439,0.0225982,2334.0,2333.9,7.35487212]
[1725983826684,0.0225982,2334.0,2333.9,26.91083156]
[1725983826838,0.0244506,2334.5,2334.4,8.4322424]
[1725983827182,0.0244506,2335.0,2334.4,9.27546664]
[1725983827477,0.0244506,2336.0,2334.4,9.27546664]
[1725983827478,0.0244506,2336.0,2335.7,1.4779]
[1725983827692,0.0244506,2336.0,2335.8,0.08561588]
[1725983827890,0.0244506,2336.0,2335.4,7.6074424]
[1725983828033,0.0244506,2336.0,2335.5,3.0856153]
[1725983828233,0.0244506,2336.0,2335.5,4.15492107]
[1725983828475,0.0244506,2336.0,2335.5,3.0856153]
[1725983828680,0.0244506,2336.0,2335.5,0.0856153]
[1725983828854,0.0244506,2336.0,2335.6,3.0]
[1725983829047,0.0244506,2336.0,2335.2,8.07483855]
[1725983829048,0.0077796,2336.0,2335.8,2.0]
[1725983829253,0.0077796,2336.0,2335.6,2.2921]
[1725983829437,0.0077796,2336.0,2335.6,3.0]
[1725983829636,0.0077796,2336.0,2335.7,0.08561102]
[1725983830640,0.0077796,2336.0,2335.5,0.08561534]
[1725983830842,0.23863756,2336.0,2335.5,0.08561534]
[1725983831681,0.0077796,2336.0,2335.5,0.08561534]
[1725983831845,0.0077796,2336.0,2335.4,0.08562381]
[1725983833183,0.0077796,2336.0,2335.4,4.46952381]
[1725983833337,0.0077796,2336.0,2335.5,3.08561334]
[1725983833538,0.0077796,2336.0,2335.7,2.0]
[1725983833774,0.0077796,2336.0,2335.8,0.08560149]
[1725983835674,0.0077796,2336.0,2335.9,2.3689]
[1725983837181,0.0077796,2336.0,2335.8,3.08560149]
[1725983837485,0.0077796,2336.0,2335.8,0.08560149]
[1725983837649,0.0077796,2336.0,2335.8,0.90339301]
[1725983837849,0.0077796,2336.0,2335.8,3.90339301]
[1725983838788,0.0077796,2336.0,2335.8,3.0]
[1725983838951,0.0077796,2336.0,2335.5,0.08561192]
[1725983839384,0.0077796,2336.0,2335.7,2.0]
[1725983839593,0.0077796,2336.0,2335.8,0.08560462]
[1725983842091,0.0077796,2336.0,2335.5,0.08561083]
[1725983843910,0.0077796,2336.0,2335.3,2.0]
[1725983844096,0.0077796,2336.0,2335.0,2.0]
[1725983844097,2.4232,2335.9,2335.0,2.0]
[1725983844302,2.4232,2335.7,2335.0,2.0]
[1725983844493,2.4232,2335.7,2335.1,0.0856334]
[1725983845383,0.0077796,2335.8,2335.1,2.3417334]
[1725983845604,0.0077796,2335.8,2335.1,5.2561]
[1725983845789,0.0077796,2335.8,2335.2,0.72561]
[1725983845972,0.0077796,2335.8,2335.3,0.08562326]
[1725983847515,0.0077796,2335.8,2335.3,3.08562326]
[1725983847672,0.0077796,2335.8,2335.3,0.08562326]
[1725983847869,0.0077796,2335.8,2335.3,2.08562326]
[1725983848076,0.0077796,2335.8,2335.4,0.08561885]
[1725983849110,0.0077796,2335.8,2335.4,0.54184074]
[1725983849320,0.0077796,2335.8,2335.4,3.54184074]
[1725983849523,0.0077796,2335.8,2335.4,3.08561885]
[1725983849734,0.0077796,2335.8,2335.4,0.08561885]
[1725983849886,2.4683796,2335.8,2335.5,3.0]
[1725983850087,2.4683796,2335.8,2335.4,0.08561885]
[1725983850488,2.4683796,2335.8,2335.1,0.08562452]
[1725983850688,2.4683796,2335.8,2335.1,0.83328452]
[1725983852199,2.4683796,2335.8,2335.0,2.0]
[1725983853322,2.4683796,2335.8,2335.1,0.08563657]